bitfinex-derivatives/quotes_SOLF0:USTF0_20250924
["timestamp","ask_amount","ask_price","bid_price","bid_amount"]
[1758707150345,1.97387246,210.82,210.77,7.98]
[1758707150547,1.97387246,210.81,210.76,4.2687]
[1758707150747,12.0873,210.84,210.77,7.98]
[1758707150946,1.97419145,210.83,210.77,7.98]
[1758707151248,1.97419145,210.82,210.76,4.2687]
[1758707151443,1.97419145,210.81,210.76,4.2687]
[1758707151643,12.0873,210.84,210.77,7.98]
[1758707151844,1.97420045,210.83,210.77,12.2486]
[1758707152042,1.97420045,210.82,210.78,7.98]
[1758707152244,1.97420045,210.81,210.78,7.98]
[1758707152448,12.0873,210.84,210.78,7.98]
[1758707152749,1.97420838,210.83,210.77,4.2686]
[1758707152948,1.97420838,210.82,210.77,4.2686]
[1758707153150,1.97420838,210.81,210.77,4.2686]
[1758707153344,7.82,210.89,210.78,7.98]
[1758707153549,1.97420453,210.88,210.78,7.98]
[1758707153846,1.97420453,210.87,210.78,7.98]
[1758707154044,1.97420453,210.86,210.83,7.55]
[1758707154243,12.1361,210.9,210.83,7.55]
[1758707154549,1.97403871,210.89,210.83,7.55]
[1758707154746,1.97403871,210.88,210.82,11.8175]
[1758707154949,1.97403871,210.87,210.83,7.55]
[1758707155143,1.97403871,210.86,210.83,7.55]
[1758707155341,7.87,210.87,210.82,4.2675]
[1758707155545,1.97434642,210.86,210.82,4.2675]
[1758707155742,7.87,210.87,210.82,4.2675]
[1758707155950,7.87,210.87,210.83,7.55]
[1758707156253,2.14519134,210.91,210.83,11.8173]
[1758707156449,1.97455381,210.9,210.84,7.55]
[1758707156753,7.87,210.91,210.84,7.55]
[1758707156947,1.97452069,210.9,210.86,4.2667]
[1758707157149,7.87,210.91,210.86,4.2667]
[1758707157847,7.87,210.91,210.87,7.55]
[1758707158050,7.87,210.95,210.87,11.8165]
[1758707158252,1.97386524,210.94,210.88,7.38]
[1758707158554,1.97386524,210.93,210.87,65.06]
[1758707158756,4.2649,210.96,210.88,11.6463]
[1758707159051,7.8,210.95,210.88,11.6463]
[1758707160955,4.2644,210.99,210.91,7.38]
[1758707161158,7.8,210.99,210.91,7.38]
[1758707162759,7.8,210.99,210.92,4.2656]
[1758707163159,7.8,210.99,210.93,7.38]
[1758707164063,4.2634,211.03,210.94,4.2651]
[1758707164254,9.82879334,211.02,210.95,7.38]
[1758707164461,2.02879334,211.01,210.95,7.38]
[1758707164658,7.8,211.02,210.95,7.38]
[1758707164961,2.02727309,211.01,210.95,7.38]
[1758707165159,7.8,211.02,210.95,7.38]
[1758707165463,7.8,211.02,210.95,11.6449]
[1758707165664,7.8,211.02,210.95,7.38]
[1758707166861,2.02429908,211.01,210.95,7.38]
[1758707167068,7.8,211.02,210.95,7.38]
[1758707167461,7.8,211.02,210.88,80.41269867]
[1758707167462,7.8,211.02,210.89,7.38]
[1758707167663,7.8,211.0,210.9,115.82]
[1758707167870,7.8,210.99,210.9,115.82]
[1758707168776,12.0644,210.99,210.91,7.38]
[1758707170872,7.8,210.97,210.87,7.38]
[1758707171771,7.8,210.94,210.87,7.38]
[1758707172172,7.8,210.94,210.82,7.38]
[1758707172471,66.337,210.98,210.85,55.72]
[1758707172472,7.8,210.91,210.85,55.72]
[1758707172872,7.8,210.91,210.84,11.6472]
[1758707173175,7.8,210.91,210.84,106.9072]
[1758707174373,12.066,210.91,210.84,106.9072]
[1758707175371,66.337,210.98,210.84,95.26]
[1758707175578,6.14743984,211.05,210.85,7.38]
[1758707175579,7.8,210.96,210.85,7.38]
[1758707176276,4.2651,210.95,210.87,4.2665]
[1758707176472,7.8,211.01,210.87,7.38]
[1758707176680,7.8,210.99,210.87,7.38]
[1758707177880,12.0644,210.99,210.91,7.38]
[1758707179282,12.0644,210.99,210.92,4.2656]
[1758707181576,7.8,210.99,210.93,4.2653]
[1758707182183,7.8,210.99,210.93,11.6453]
[1758707183279,1.37153698,211.02,210.93,7.38]
[1758707183483,12.0635,211.03,210.96,7.38]
[1758707184785,12.0635,211.03,210.96,11.6447]
[1758707186885,7.8,211.03,210.95,1.37153698]
[1758707187783,7.31,211.0,210.95,1.37153698]
[1758707187986,7.31,211.01,210.93,7.43]
[1758707188186,7.31,211.01,210.92,1.37153698]
[1758707188394,7.31,210.99,210.91,4.2658]
[1758707189893,4.2647,210.97,210.91,4.2658]
[1758707190083,11.5747,210.97,210.91,4.2658]
[1758707191789,4.2643,210.99,210.93,7.43]
[1758707192093,7.31,211.0,210.93,7.43]
[1758707192392,2.0255588,210.99,210.93,7.43]
[1758707192587,4.2648,210.97,210.93,7.43]
[1758707192788,7.31,210.96,210.92,1.37153698]
[1758707193296,4.2648,210.97,210.92,1.37153698]
[1758707193493,7.31,210.96,210.92,8.80153698]
[1758707194591,7.31,210.96,210.92,5.63703698]
[1758707194895,11.5748,210.97,210.93,7.43]
[1758707196493,7.31,210.96,210.93,7.43]
[1758707200097,7.31,210.97,210.93,7.43]
[1758707202798,2.02753529,210.95,210.93,7.43]
[1758707203098,2.02753529,210.95,210.92,4.2655]
[1758707203301,4.2647,210.97,210.92,11.6955]
[1758707203494,7.31,210.95,210.92,4.2655]
[1758707203699,7.31,210.95,210.93,7.43]
[1758707203899,7.31,210.95,210.92,4.2655]
[1758707204200,7.31,210.95,210.92,11.6955]
[1758707204902,7.31,210.95,210.92,4.2655]
[1758707205099,7.31,210.95,210.92,11.6955]
[1758707205801,7.31,210.95,210.92,4.2655]
[1758707206101,7.31,210.95,210.93,7.43]
[1758707206298,11.5747,210.97,210.93,7.43]
[1758707206493,9.3386779,210.96,210.93,7.43]
[1758707206697,7.31,210.96,210.93,7.43]
[1758707206895,7.31,210.96,210.92,4.2655]
[1758707207300,4.2647,210.97,210.92,11.6955]
[1758707207500,7.31,210.95,210.92,11.6955]
[1758707208202,7.31,210.95,210.93,7.43]
[1758707208598,4.2644,210.99,210.93,7.43]
[1758707208898,3.21409173,210.98,210.9,7.43]
[1758707209104,2.02862648,210.97,210.94,7.43]
[1758707209302,2.02862648,210.96,210.94,7.43]
[1758707209601,7.31,210.98,210.94,7.43]
[1758707209807,9.33868903,210.97,210.94,7.43]
[1758707210001,2.02868903,210.96,210.94,7.43]
[1758707210303,7.31,210.97,210.94,7.43]
[1758707210500,2.02875389,210.96,210.94,7.43]
[1758707210701,7.31,210.97,210.94,7.43]
[1758707211000,2.02875389,210.96,210.94,7.43]
[1758707211201,7.31,210.97,210.94,7.43]
[1758707211400,2.02914088,210.96,210.94,7.43]
[1758707211599,7.31,210.97,210.94,7.43]
[1758707211803,2.02914088,210.96,210.94,7.43]
[1758707212102,7.31,210.97,210.94,7.43]
[1758707212301,2.02914088,210.96,210.94,7.43]
[1758707212494,7.31,210.97,210.94,4.2652]
[1758707212697,7.31,210.99,210.95,7.43]
[1758707212898,2.02933151,210.98,210.93,7.43]
[1758707213094,2.02933151,210.97,210.96,11.6948]
[1758707213700,4.2637,211.02,210.96,11.6948]
[1758707214006,7.89,211.0,210.97,7.69]
[1758707214204,2.02924515,210.99,210.97,7.69]
[1758707214399,2.02924515,210.98,210.97,7.69]
[1758707215903,7.89,211.03,210.97,7.69]
[1758707216103,3.21431466,211.02,210.97,7.69]
[1758707216404,3.21431466,211.01,210.97,7.69]
[1758707216607,2.02902069,211.0,210.97,7.69]
[1758707216806,2.02902069,210.99,210.97,7.69]
[1758707217007,7.89,211.03,210.97,7.69]
[1758707217307,7.89,211.01,210.97,7.69]
[1758707217502,2.02889411,211.0,210.97,7.69]
[1758707218200,2.02889411,210.99,210.95,7.84]
[1758707218408,2.02939567,210.98,210.91,9.21153698]
[1758707218603,2.02939567,210.97,210.92,111.9456]
[1758707218803,9.77939567,210.96,210.92,111.9456]
[1758707219109,7.75,210.96,210.92,119.7856]
[1758707219705,7.75,210.96,210.93,12.1054]
[1758707220009,7.75,210.99,210.93,7.84]
[1758707220208,2.03010698,210.98,210.92,107.68]
[1758707220410,2.03010698,210.97,210.95,7.84]
[1758707220710,7.75,210.95,210.92,107.68]
[1758707220908,7.75,210.95,210.92,115.52]
[1758707221407,7.75,210.95,210.92,7.84]
[1758707221601,7.75,210.95,210.92,127.8256]
[1758707222713,7.75,210.95,210.92,123.56]
[1758707224117,2.00941872,210.94,210.92,123.56]
[1758707224314,2.00941872,210.93,210.92,123.56]
[1758707224518,2.00941872,210.94,210.92,123.56]
[1758707224719,2.00941872,210.93,210.92,123.56]
[1758707224911,2.00941872,210.94,210.92,123.56]
[1758707225112,2.00941872,210.93,210.92,123.56]
[1758707225613,2.00941872,210.93,210.92,115.72]
[1758707225815,4.2645,210.98,210.92,115.72]
[1758707226014,10.94494037,210.97,210.93,7.84]
[1758707226213,3.19494037,210.96,210.94,7.84]
[1758707226413,2.0094758,210.95,210.94,7.84]
[1758707226610,2.0094758,210.96,210.94,7.84]
[1758707226811,2.0094758,210.95,210.92,123.56]
[1758707227015,2.0094758,210.94,210.93,7.84]
[1758707227311,2.00958728,210.97,210.93,7.84]
[1758707227516,3.19502454,210.96,210.93,7.84]
[1758707227715,2.00958728,210.95,210.93,7.84]
[1758707227914,2.00958728,210.94,210.93,7.84]
[1758707234025,7.75,210.97,210.93,7.84]
[1758707234224,10.94560216,210.96,210.93,7.84]
[1758707234425,2.01012887,210.95,210.93,7.84]
[1758707235017,2.01012887,210.95,210.92,115.72]
[1758707235222,1.37153698,210.98,210.92,115.72]
[1758707235423,10.94564086,210.97,210.93,7.84]
[1758707235623,3.19564086,210.96,210.93,7.84]
[1758707235825,2.01016757,210.95,210.93,7.84]
[1758707236023,1.37153698,210.98,210.93,7.84]
[1758707236216,7.75,210.96,210.93,7.84]
[1758707236421,2.01016756,210.95,210.93,7.84]
[1758707240633,7.75,210.94,210.92,115.72]
[1758707241421,4.2646,210.98,210.92,115.72]
[1758707241625,7.75,210.96,210.92,123.56]
[1758707241827,2.01020259,210.95,210.92,123.56]
[1758707242027,2.01020259,210.94,210.92,123.56]
[1758707242223,7.75,210.96,210.92,123.56]
[1758707242432,2.01018308,210.95,210.93,7.84]
[1758707242632,2.01018308,210.94,210.93,7.84]
[1758707243132,7.75,210.96,210.93,7.84]
[1758707243432,2.01019839,210.95,210.93,7.84]
[1758707243629,7.75,210.96,210.93,7.64]
[1758707243933,2.01017065,210.95,210.93,7.64]
[1758707244133,7.75,210.96,210.93,7.64]
[1758707244333,2.01020644,210.95,210.93,7.64]
[1758707244534,7.75,210.96,210.93,7.64]
[1758707244828,2.0101787,210.95,210.93,7.64]
[1758707245034,2.01018377,210.94,210.93,7.64]
[1758707247835,7.75,210.93,210.9,7.64]
[1758707248033,7.75,210.91,210.86,7.64]
[1758707248239,9.7601718,210.9,210.86,51.12]
[1758707248432,7.75,210.9,210.86,51.12]
[1758707249334,7.75,210.9,210.87,7.64]
[1758707250239,2.00993065,210.89,210.87,7.64]
[1758707250434,7.75,210.9,210.87,7.64]
[1758707250738,2.00993331,210.89,210.87,7.64]
[1758707250943,7.75,210.9,210.87,7.64]
[1758707251136,4.2656,210.93,210.87,7.64]
[1758707251339,3.19515823,210.92,210.87,7.64]
[1758707251539,2.00938369,210.91,210.86,43.48]
[1758707251842,2.00938369,210.9,210.87,7.64]
[1758707252039,4.2656,210.93,210.87,7.64]
[1758707252340,3.19509453,210.92,210.86,47.7468]
[1758707252539,2.00932066,210.91,210.86,47.7468]
[1758707252741,4.2656,210.93,210.87,7.64]
[1758707252943,2.0088726,210.92,210.86,47.7468]
[1758707253136,4.2656,210.93,210.87,7.64]
[1758707253331,14.0159019,210.92,210.86,47.7468]
[1758707253532,7.75,210.92,210.86,51.12]
[1758707253843,2.00003382,210.91,210.86,51.12]
[1758707254042,7.75,210.89,210.86,51.12]
[1758707254242,4.2662,210.9,210.86,123.34]
[1758707254439,7.75,210.89,210.86,123.34]
[1758707258650,7.75,210.89,210.86,7.64]
[1758707258845,66.3558,210.92,210.82,345.16]
[1758707259141,7.75,210.9,210.82,352.8]
[1758707259337,12.0173,210.85,210.79,7.64]
[1758707259644,7.75,210.87,210.8,47.96]
[1758707259943,2.14311465,210.88,210.8,47.96]
[1758707259944,7.75,210.85,210.8,47.96]
[1758707260141,4.2678,210.82,210.8,47.96]
[1758707260338,12.0178,210.82,210.8,47.96]
[1758707260741,7.75,210.84,210.75,7.64]
[1758707260937,7.75,210.81,210.75,7.64]
[1758707261140,1.99681522,210.8,210.74,115.7]
[1758707261342,1.99447005,210.79,210.74,115.7]
[1758707261544,7.75,210.81,210.75,7.64]
[1758707261746,7.75,210.79,210.75,7.64]
[1758707262346,4.2687,210.78,210.75,7.64]
[1758707263544,4.2687,210.78,210.67,7.64]
[1758707263545,7.75,210.78,210.67,7.64]
[1758707263851,14.0308023,210.84,210.69,7.64]
[1758707263852,7.75,210.83,210.69,7.64]
[1758707264143,3.17778111,210.82,210.69,7.64]
[1758707264341,7.75,210.83,210.7,9.78311465]
[1758707264542,7.75,210.83,210.71,7.64]
[1758707265743,12.0175,210.83,210.73,4.2693]
[1758707265942,12.0175,210.83,210.75,7.64]
[1758707266139,7.75,210.83,210.75,7.64]
[1758707266546,4.2679,210.81,210.75,7.64]
[1758707274145,12.0175,210.83,210.75,7.64]
[1758707277052,2.14311465,210.86,210.72,11.9697]
[1758707277256,1.98346046,210.85,210.72,76.6097]
[1758707277556,7.33,210.83,210.73,7.7]
[1758707278856,4.268,210.81,210.73,7.7]
[1758707279552,7.33,210.83,210.74,7.84]
[1758707280855,11.5976,210.83,210.77,7.84]
[1758707282954,7.33,210.83,210.77,7.84]
[1758707283864,12.0881,210.8,210.77,7.84]
[1758707284864,7.82,210.86,210.76,7.84]
[1758707285164,2.14311465,210.87,210.76,7.84]
[1758707285165,7.82,210.84,210.76,7.84]
[1758707286765,4.2678,210.82,210.76,7.84]
[1758707290871,4.2678,210.82,210.76,12.1088]
[1758707291071,12.0873,210.84,210.76,12.1088]
[1758707291564,4.267,210.86,210.74,9.98311465]
[1758707291763,7.82,210.87,210.76,7.84]
[1758707292064,7.82,210.93,210.78,7.84]
[1758707292269,3.15320441,210.92,210.85,7.84]
[1758707292573,7.82,210.93,210.85,7.84]
[1758707292773,1.96713401,210.92,210.85,7.84]
[1758707292973,7.82,210.93,210.85,7.84]
[1758707293274,1.96713382,210.92,210.85,7.84]
[1758707293573,7.82,210.93,210.85,7.84]
[1758707293774,6.23322898,210.92,210.85,7.84]
[1758707293975,4.2658,210.92,210.85,7.84]
[1758707296076,7.82,210.93,210.86,4.2668]
[1758707296282,7.82,210.93,210.87,7.84]
[1758707304988,1.37204254,210.92,210.83,7.6]
[1758707305186,7.54,210.89,210.83,7.6]
[1758707305387,7.54,210.85,210.79,7.6]
[1758707305588,7.54,210.83,210.76,7.6]
[1758707305792,1.37204254,210.82,210.76,7.6]
[1758707306888,4.2682,210.8,210.74,345.42]
[1758707307093,13.18024254,210.8,210.74,345.42]
[1758707308395,7.54,210.79,210.72,7.6]
[1758707309795,4.2686,210.78,210.72,7.6]
[1758707314297,5.64064254,210.78,210.72,7.6]
[1758707314596,1.37204254,210.76,210.7,105.12]
[1758707316998,1.37204254,210.76,210.69,7.6]
[1758707317390,7.54,210.75,210.69,7.6]
[1758707319697,7.54,210.75,210.69,11.8702]
[1758707319899,7.54,210.75,210.69,7.6]
[1758707327304,4.2691,210.76,210.69,7.6]
[1758707335913,7.31,210.75,210.69,7.6]
[1758707336107,11.5793,210.75,210.69,7.6]
[1758707350920,1.37204254,210.78,210.69,7.74]
[1758707351121,1.18662341,210.77,210.7,7.74]
[1758707351316,1.18662341,210.76,210.7,7.74]
[1758707351518,7.24,210.77,210.7,7.74]
[1758707351726,1.18658328,210.76,210.7,7.74]
[1758707351928,7.24,210.77,210.7,7.74]
[1758707352226,7.24,210.75,210.68,8.23200752]
[1758707352427,11.5092,210.75,210.69,3.96160752]
[1758707353223,11.5092,210.75,210.68,3.96160752]
[1758707354230,1.18663819,210.74,210.68,3.96160752]
[1758707354422,11.5092,210.75,210.69,3.96160752]
[1758707354726,8.61204254,210.73,210.66,3.96160752]
[1758707354917,8.42663819,210.72,210.65,7.74]
[1758707355123,7.24,210.7,210.65,7.74]
[1758707355325,10.50060814,210.69,210.64,7.74]
[1758707355629,2.07396995,210.68,210.63,1.37204254]
[1758707355926,2.07396995,210.67,210.64,7.74]
[1758707356228,2.07396995,210.66,210.63,1.37204254]
[1758707356428,7.24,210.69,210.63,1.37204254]
[1758707356623,2.070491,210.68,210.63,1.37204254]
[1758707356822,2.070491,210.67,210.63,1.37204254]
[1758707357019,7.24,210.69,210.63,1.37204254]
[1758707357020,2.070491,210.66,210.63,1.37204254]
[1758707357224,7.24,210.69,210.63,1.37204254]
[1758707357424,2.06977965,210.68,210.64,7.74]
[1758707357625,2.06977965,210.67,210.64,7.74]
[1758707357928,7.24,210.69,210.64,7.74]
[1758707358135,2.06977965,210.68,210.64,7.74]
[1758707358333,9.30977965,210.67,210.64,7.74]
[1758707358541,9.30977965,210.66,210.61,41.72]
[1758707358834,9.30977965,210.65,210.62,7.74]
[1758707359031,7.24,210.65,210.62,7.74]
[1758707359531,7.24,210.65,210.61,41.72]
[1758707359726,7.24,210.65,210.62,7.74]
[1758707360331,7.24,210.65,210.61,41.72]
[1758707360532,7.24,210.65,210.62,7.74]
[1758707360729,7.24,210.71,210.62,7.74]
[1758707360926,7.24,210.69,210.59,7.74]
[1758707361126,7.24,210.66,210.59,7.74]
[1758707361326,3.2546462,210.65,210.59,7.74]
[1758707361526,7.24,210.63,210.59,7.74]
[1758707361731,7.24,210.61,210.58,25.98]
[1758707362330,4.2715,210.64,210.57,345.52]
[1758707362629,9.30468498,210.63,210.56,7.74]
[1758707362834,2.06468498,210.62,210.56,7.74]
[1758707363428,7.24,210.73,210.56,66.4691]
[1758707363634,7.24,210.71,210.57,7.28]
[1758707363832,7.24,210.69,210.57,7.28]
[1758707364029,2.06338253,210.68,210.57,7.28]
[1758707364222,2.06338253,210.67,210.57,7.28]
[1758707364426,2.06338253,210.66,210.57,7.28]
[1758707364625,7.24,210.69,210.57,7.28]
[1758707364823,1.9718865,210.68,210.6,4.272]
[1758707365026,1.9718865,210.67,210.61,7.28]
[1758707365222,9.2118865,210.66,210.61,7.28]
[1758707365533,7.24,210.66,210.6,11.552]
[1758707366828,7.24,210.66,210.6,7.28]
[1758707367028,7.24,210.64,210.55,7.28]
[1758707367737,7.24,210.64,210.55,122.96]
[1758707367936,1.97044781,210.63,210.55,122.96]
[1758707368234,7.24,210.62,210.55,122.96]
[1758707368734,9.20976059,210.61,210.5,7.28]
[1758707368932,1.96976059,210.6,210.5,7.28]
[1758707369237,7.24,210.59,210.5,11.5541]
[1758707370330,7.24,210.59,210.51,4.2738]
[1758707372337,7.24,210.59,210.52,7.28]
[1758707375744,7.24,210.59,210.52,11.5536]
[1758707375944,7.24,210.59,210.52,7.28]
[1758707382147,7.24,210.6,210.53,11.5535]
[1758707384248,7.24,210.6,210.54,7.28]
[1758707384449,7.24,210.64,210.54,7.28]
[1758707384655,7.24,210.69,210.55,7.28]
[1758707384854,4.2708,210.67,210.59,4.2723]
[1758707385054,4.2708,210.67,210.6,7.28]
[1758707385250,7.24,210.69,210.6,7.28]
[1758707386252,1.9587518,210.68,210.6,7.28]
[1758707386456,7.24,210.69,210.6,7.28]
[1758707386655,1.9587518,210.68,210.6,7.28]
[1758707386854,11.5104,210.69,210.6,4.272]
[1758707387054,1.95875188,210.68,210.61,7.28]
[1758707387357,11.5104,210.69,210.61,7.28]
[1758707387958,4.2707,210.68,210.61,7.28]
[1758707388159,7.24,210.69,210.61,7.28]
[1758707388654,7.24,210.67,210.55,57.92]
[1758707388859,9.19961302,210.66,210.56,7.28]
[1758707389059,7.24,210.66,210.56,7.28]
[1758707389455,11.5117,210.63,210.56,7.28]
[1758707389662,7.24,210.63,210.56,7.28]
[1758707390762,4.2719,210.62,210.56,7.28]
[1758707392354,7.24,210.63,210.56,7.28]
[1758707392661,4.2714,210.64,210.56,7.28]
[1758707393755,4.2717,210.63,210.56,7.28]
[1758707394561,4.2719,210.62,210.56,7.28]
[1758707396264,12.1814,210.64,210.56,7.28]
[1758707397262,1.96580007,210.63,210.56,7.28]
[1758707397462,12.1814,210.64,210.56,7.28]
[1758707397663,1.96580008,210.63,210.56,7.28]
[1758707397863,12.1814,210.64,210.57,7.85]
[1758707398164,1.96580008,210.63,210.57,7.85]
[1758707398463,4.271,210.66,210.58,7.98]
[1758707398658,1.96691687,210.65,210.58,7.98]
[1758707398861,4.271,210.66,210.58,7.98]
[1758707399064,1.96691671,210.65,210.58,7.98]
[1758707399264,1.9681998,210.64,210.58,7.98]
[1758707399463,4.271,210.66,210.58,7.98]
[1758707399759,1.96819982,210.65,210.58,12.2524]
[1758707399963,1.96819982,210.64,210.58,4.2724]
[1758707400264,4.271,210.66,210.59,7.98]
[1758707400464,1.96859513,210.65,210.59,7.98]
[1758707400664,4.271,210.66,210.59,7.98]
[1758707400867,1.96859507,210.65,210.59,7.98]
[1758707401066,4.271,210.66,210.59,7.98]
[1758707401261,1.96859502,210.65,210.59,7.98]
[1758707401464,4.271,210.66,210.59,7.98]
[1758707401660,1.96898217,210.65,210.57,7.98]
[1758707401971,7.23,210.67,210.57,7.98]
[1758707402156,1.96898207,210.66,210.57,7.98]
[1758707402467,1.96898207,210.65,210.6,4.2721]
[1758707402666,11.5009,210.67,210.61,7.98]
[1758707402868,1.96939317,210.66,210.61,7.98]
[1758707403064,1.96939317,210.65,210.6,4.2721]
[1758707403266,1.96983401,210.64,210.61,7.98]
[1758707403467,7.23,210.64,210.58,7.98]
[1758707404472,4.2713,210.65,210.58,7.98]
[1758707404769,1.98334383,210.64,210.58,7.98]
[1758707404968,4.2713,210.65,210.58,7.98]
[1758707405169,1.98334388,210.64,210.58,7.98]
[1758707405374,1.98352509,210.63,210.56,3.98436005]
[1758707405573,4.2713,210.65,210.57,7.98]
[1758707405871,1.98352509,210.64,210.58,4.2725]
[1758707406074,1.98352509,210.63,210.59,7.98]
[1758707406274,11.5008,210.67,210.59,7.98]
[1758707406475,1.98344736,210.66,210.59,7.98]
[1758707406678,1.98344736,210.65,210.59,7.98]
[1758707406971,1.98344736,210.64,210.58,7.98]
[1758707407274,11.5008,210.67,210.58,7.98]
[1758707407471,1.98332862,210.66,210.58,7.98]
[1758707407672,1.98332862,210.65,210.58,7.98]
[1758707407970,1.98332862,210.64,210.58,7.98]
[1758707408170,11.5008,210.67,210.58,7.98]
[1758707408372,1.98320636,210.66,210.58,7.98]
[1758707408572,1.98320636,210.65,210.58,7.98]
[1758707408773,1.98320636,210.64,210.6,4.2721]
[1758707408974,11.5008,210.67,210.61,7.98]
[1758707409275,1.98320636,210.66,210.6,12.2521]
[1758707409466,1.98320636,210.65,210.61,7.98]
[1758707409668,1.98320636,210.64,210.61,7.98]
[1758707409865,11.5008,210.67,210.61,7.98]
[1758707410070,7.23,210.74,210.61,7.98]
[1758707410270,3.17034742,210.73,210.63,7.98]
[1758707410475,1.98319827,210.72,210.65,7.98]
[1758707410674,7.23,210.78,210.69,7.98]
[1758707410879,3.16465429,210.77,210.69,7.98]
[1758707411087,1.97786904,210.76,210.73,4.2694]
[1758707411269,7.23,210.81,210.74,7.98]
[1758707411474,3.16269529,210.8,210.74,7.98]
[1758707411675,1.97608256,210.79,210.74,7.98]
[1758707411875,1.97608256,210.78,210.74,7.98]
[1758707412076,1.97608256,210.77,210.73,68.7494]
[1758707412272,7.23,210.81,210.74,7.98]
[1758707412479,1.96890291,210.8,210.74,7.98]
[1758707412783,1.96890291,210.79,210.74,7.98]
[1758707413078,1.96890291,210.78,210.73,68.7494]
[1758707413381,7.23,210.81,210.74,7.98]
[1758707413585,1.96739272,210.8,210.74,7.98]
[1758707413774,11.4972,210.85,210.76,4.2687]
[1758707414079,1.96737497,210.84,210.77,7.98]
[1758707414289,1.96737497,210.83,210.77,12.2485]
[1758707414475,7.23,210.85,210.78,7.98]
[1758707414675,441.1769,210.92,210.78,7.98]
[1758707414676,7.23,210.89,210.78,7.98]
[1758707414875,1.96550675,210.88,210.81,4.2677]
[1758707415079,7.23,210.89,210.82,7.98]
[1758707415486,4.2659,210.92,210.82,7.98]
[1758707415777,7.23,210.93,210.81,83.7677]
[1758707415778,7.23,210.93,210.83,4.2675]
[1758707415982,7.23,210.93,210.84,7.98]
[1758707418186,7.23,210.93,210.85,4.2671]
[1758707418387,7.23,210.93,210.86,7.98]
[1758707418880,7.23,210.97,210.87,4.2667]
[1758707419076,7.23,210.97,210.88,123.7]
[1758707420689,7.23,210.97,210.88,125.0716633]
[1758707423790,7.23,210.97,210.88,123.7]
[1758707424083,7.23,210.97,210.89,115.66]
[1758707424789,4.2649,210.96,210.89,115.66]
[1758707424990,1.3716633,210.94,210.88,7.98]
[1758707425994,5.6369633,210.94,210.88,7.98]
[1758707427595,5.6369633,210.94,210.86,115.68]
[1758707427596,13.1073633,210.92,210.86,115.68]
[1758707431306,13.1073633,210.92,210.84,7.23]
[1758707431307,1.3716633,210.9,210.84,122.85]
[1758707431908,5.6371633,210.94,210.85,7.23]
[1758707432304,5.6371633,210.94,210.85,8.6016633]
[1758707433002,5.6371633,210.94,210.86,7.23]
[1758707433306,11.7355,210.94,210.86,7.23]